bitfinex-derivatives/quotes_ETHF0:USTF0_20250106
["timestamp","ask_amount","ask_price","bid_price","bid_amount"]
[1736180656732,3.15626281,3733.2,3733.1,0.26786]
[1736180660041,4.20835041,3733.4,3733.1,2.10254087]
[1736180660341,4.20835041,3733.4,3733.3,0.26784]
[1736180661546,2.10412158,3733.5,3733.4,0.26783]
[1736180661745,2.10412158,3733.5,3733.4,2.37037087]
[1736180662740,2.10412158,3733.5,3733.4,43.17037087]
[1736180662937,2.10412158,3733.8,3733.7,0.26781]
[1736180663943,3.15618237,3733.8,3733.4,43.57212087]
[1736180664235,3.15618237,3733.8,3733.7,0.26781]
[1736180667547,3.15618237,3733.9,3733.8,0.26781]
[1736180669459,3.2078,3733.9,3733.8,0.26781]
[1736180669663,3.2078,3733.9,3733.4,42.90254087]
[1736180669664,0.26782,3733.7,3733.5,0.26783]
[1736180670059,2.3301,3733.6,3733.5,0.26783]
[1736180670263,2.3301,3733.6,3733.5,41.06783]
[1736180670966,2.3301,3733.6,3733.5,40.8]
[1736180670967,2.59792,3733.6,3733.5,40.8]
[1736180671963,4.99992,3733.6,3733.5,40.8]
[1736180672172,4.7321,3733.6,3733.5,41.06783]
[1736180673459,4.99992,3733.6,3733.5,41.06783]
[1736180673865,4.7321,3733.6,3733.5,41.06783]
[1736180674563,4.99992,3733.6,3733.5,41.06783]
[1736180675057,9.99418011,3733.6,3733.5,41.06783]
[1736180675448,10.26200011,3733.6,3733.5,41.06783]
[1736180675849,9.99418011,3733.6,3733.5,41.06783]
[1736180676451,10.26200011,3733.6,3733.5,41.06783]
[1736180677160,9.99418011,3733.6,3733.0,0.66966]
[1736180677451,3.47564,3733.4,3733.3,0.26783]
[1736180677654,3.47564,3733.4,3733.3,41.06783]
[1736180678158,3.2078,3733.4,3733.3,41.06783]
[1736180679051,3.2078,3733.4,3733.3,0.26783]
[1736180680355,7.41747456,3733.4,3733.3,0.26783]
[1736180683756,7.41747456,3733.4,3733.3,41.06783]
[1736180684157,3.2078,3733.4,3733.3,41.06783]
[1736180685156,4.20967456,3733.5,3733.4,0.26783]
[1736180685467,4.20967456,3733.5,3733.4,1.49383]
[1736180685660,4.6623,3733.6,3733.5,0.26783]
[1736180686363,4.20967456,3733.7,3733.3,40.8]
[1736180686563,4.20967456,3733.7,3733.6,0.26782]
[1736180687158,4.20967456,3733.7,3733.3,40.8]
[1736180687355,2.3961,3733.6,3733.5,0.26782]
[1736180687959,6.60577456,3733.6,3733.5,0.26782]
[1736180689257,2.3961,3733.6,3733.5,0.26782]
[1736180689765,4.8682,3733.6,3733.5,0.26782]
[1736180690361,9.07787456,3733.6,3733.5,0.26782]
[1736180691261,4.8682,3733.6,3733.5,0.26782]
[1736180693863,4.8682,3733.6,3733.3,40.8]
[1736180694064,2.64303,3733.5,3733.4,0.26783]
[1736180694366,5.583,3733.5,3732.8,3.2078]
[1736180694563,5.583,3733.5,3732.7,0.26788]
[1736180694564,0.26788,3732.8,3732.7,0.26788]
[1736180694766,3.2078,3733.0,3732.7,0.26788]
[1736180694970,0.26788,3732.8,3732.7,0.26788]
[1736180695265,0.26788,3732.8,3732.3,4.76955616]
[1736180695266,0.26791,3732.4,3732.3,4.36768616]
[1736180695457,3.47571,3732.4,3732.3,4.36768616]
[1736180695859,3.47571,3732.4,3732.3,0.26791]
[1736180696061,3.2078,3732.4,3732.3,0.26791]
[1736180697863,5.7423,3732.4,3732.3,0.26791]
[1736180698565,3.2078,3732.4,3732.3,0.26791]
[1736180698765,4.20967456,3732.5,3732.2,2.10254087]
[1736180699072,4.20967456,3732.5,3732.4,0.26791]
[1736180699271,4.20967456,3732.5,3732.4,41.06791]
[1736180699968,3.15349681,3732.6,3732.4,40.8]
[1736180700164,3.15349681,3732.6,3732.5,0.2679]
[1736180700967,8.00349681,3732.7,3732.6,0.26789]
[1736180701166,3.15349681,3732.7,3732.6,0.26789]
[1736180702373,2.10202235,3732.7,3732.6,0.26789]
[1736180703072,2.10202235,3732.7,3732.4,40.8]
[1736180703277,0.66976,3732.5,3731.7,4.36772616]
[1736180703470,0.26795,3731.8,3731.7,4.09977616]
[1736180703768,0.26795,3731.8,3731.7,0.28437616]
[1736180703970,2.79535,3731.8,3731.7,0.28437616]
[1736180704174,5.0503,3731.8,3731.5,6.14966424]
[1736180704473,3.47576,3731.6,3731.5,6.14966424]
[1736180704869,3.47576,3731.6,3731.3,0.26798]
[1736180704870,0.26798,3731.4,3731.3,0.26798]
[1736180705872,2.36722203,3731.4,3731.3,0.26798]
[1736180706969,2.09924203,3731.4,3731.3,0.26798]
[1736180707778,2.4846,3731.5,3731.4,0.26798]
[1736180708470,2.4846,3731.5,3731.4,41.06798]
[1736180708874,2.4846,3731.5,3730.9,0.67003]
[1736180709073,2.10254087,3731.0,3730.4,3.2078]
[1736180709273,2.10254087,3731.0,3730.6,0.26803]
[1736180709274,3.2078,3730.7,3730.6,0.26803]
[1736180709575,3.2078,3730.7,3729.9,3.2078]
[1736180709576,0.26804,3730.6,3730.5,0.26804]
[1736180709772,2.58544,3730.6,3730.5,0.26804]
[1736180709982,0.26805,3730.5,3730.4,0.26804]
[1736180711577,0.26806,3730.3,3730.2,0.26805]
[1736180711776,0.26807,3730.2,3730.1,0.26807]
[1736180712576,2.10254087,3730.4,3729.9,3.2078]
[1736180712776,2.4839,3730.1,3730.0,0.26808]
[1736180715775,2.4839,3730.1,3730.0,40.8]
[1736180715975,4.58644087,3730.1,3729.1,3.2078]
[1736180716275,3.2078,3729.5,3728.8,0.67042]
[1736180716583,4.7958,3729.4,3729.3,0.26813]
[1736180717080,8.0036,3729.4,3729.3,0.26813]
[1736180717273,8.27172,3729.4,3729.3,0.26813]
[1736180717471,8.0036,3729.4,3729.3,0.26813]
[1736180717980,4.7958,3729.4,3729.3,0.26813]
[1736180718176,3.2078,3729.8,3729.7,0.2681]
[1736180718772,3.4759,3729.8,3729.7,0.2681]
[1736180718972,0.2681,3729.7,3729.6,0.2681]
[1736180719477,3.2078,3729.8,3729.1,3.2078]
[1736180719683,3.2078,3729.8,3729.7,0.2681]
[1736180719982,0.2681,3729.7,3729.6,0.2681]
[1736180720170,2.10254087,3729.9,3729.1,3.2078]
[1736180720373,2.3178,3729.6,3729.5,0.26811]
[1736180720776,5.0346,3730.1,3729.8,0.26809]
[1736180720976,0.26809,3729.9,3729.8,0.26809]
[1736180721175,3.2078,3730.7,3729.9,0.67022]
[1736180721379,3.2078,3730.7,3730.6,0.26803]
[1736180721582,3.2078,3730.7,3730.6,2.37057087]
[1736180721776,3.2078,3730.7,3730.6,0.26803]
[1736180721974,3.2078,3730.7,3730.6,41.06803]
[1736180722169,2.3608,3730.9,3730.8,0.26802]
[1736180723477,0.26804,3730.5,3730.4,41.06805]
[1736180723674,0.26804,3730.5,3730.4,40.8]
[1736180723974,3.2078,3730.5,3730.0,3.2078]
[1736180724169,3.2078,3730.1,3729.3,3.2078]
[1736180724374,4.7543,3730.0,3729.9,0.26809]
[1736180724574,2.3099,3730.0,3729.9,0.26809]
[1736180724779,2.3099,3730.0,3729.7,2.10254087]
[1736180724780,2.71243,3730.7,3730.6,0.26803]
[1736180725078,4.7543,3730.7,3730.6,0.26803]
[1736180725881,4.7543,3730.7,3729.8,4.7347]
[1736180726083,0.26805,3730.5,3730.4,0.26805]
[1736180726378,3.47585,3730.5,3730.4,0.26805]
[1736180726576,3.2078,3730.5,3729.8,4.7347]
[1736180726776,0.26807,3730.2,3730.1,0.26807]
[1736180726976,3.47587,3730.2,3730.1,0.26807]
[1736180727877,0.26809,3729.9,3729.8,0.26809]
[1736180728082,2.4529,3730.1,3729.2,0.67033]
[1736180728381,4.966,3729.8,3729.7,0.2681]
[1736180728571,3.2078,3730.5,3730.4,0.26805]
[1736180728777,8.1738,3730.5,3730.4,0.26805]
[1736180729582,8.1738,3730.5,3729.8,0.67024]
[1736180729583,0.26806,3730.4,3730.3,0.26805]
[1736180729785,10.27634087,3730.5,3730.4,0.26805]
[1736180730081,8.1738,3730.5,3730.4,0.26805]
[1736180730281,8.44184,3730.5,3730.4,0.26805]
[1736180731181,8.1738,3730.5,3730.4,0.26805]
[1736180731576,8.44184,3730.5,3730.4,0.26805]
[1736180731777,8.1738,3730.5,3730.4,0.26805]
[1736180731983,8.44184,3730.5,3730.4,0.26805]
[1736180732685,0.26806,3730.4,3730.3,0.26805]
[1736180732878,0.26806,3730.4,3729.7,5.31034087]
[1736180732879,0.26808,3730.1,3730.0,0.26807]
[1736180733078,0.26807,3730.2,3730.1,0.26806]
[1736180733589,8.1738,3730.5,3729.7,3.2078]
[1736180733779,8.44185,3730.5,3730.4,0.26805]
[1736180733980,4.966,3730.5,3730.4,0.26805]
[1736180734886,3.2078,3731.1,3731.0,0.26801]
[1736180735691,4.8878,3731.2,3731.1,0.268]
[1736180736091,5.15579,3731.2,3731.1,0.268]
[1736180736280,0.26801,3731.1,3731.0,0.268]
[1736180736483,3.47581,3731.1,3731.0,0.268]
[1736180736782,0.26802,3731.0,3730.9,0.26801]
[1736180736988,0.26804,3730.6,3730.5,0.26803]
[1736180737177,3.47584,3730.6,3730.5,0.26803]
[1736180737382,0.26806,3730.4,3730.3,0.26804]
[1736180737582,2.74194,3730.5,3730.4,0.26805]
[1736180738190,2.4739,3730.5,3730.4,0.26805]
[1736180738378,2.74194,3730.5,3730.4,0.26805]
[1736180738991,2.4739,3730.5,3730.4,0.26805]
[1736180739579,2.4623,3730.6,3730.5,0.26804]
[1736180740186,2.74192,3730.8,3730.6,0.26803]
[1736180740187,2.4739,3730.8,3730.6,0.26803]
[1736180740489,5.9381,3731.3,3731.2,0.26799]
[1736180740688,8.3628,3731.3,3731.2,0.26799]
[1736180743397,8.0948,3731.3,3731.2,0.26799]
[1736180744095,4.887,3731.3,3731.2,0.26799]
[1736180744990,8.0948,3731.3,3731.2,0.26799]
[1736180745190,8.0948,3731.3,3730.4,2.10254087]
[1736180745391,8.0948,3731.3,3730.4,2.77267087]
[1736180745587,0.26804,3730.6,3730.5,0.26803]
[1736180745792,0.26805,3730.4,3730.3,3.47585]
[1736180745993,0.26805,3730.4,3730.3,3.2078]
[1736180746396,2.57375,3730.4,3730.3,3.2078]
[1736180746592,2.3057,3730.4,3730.3,3.47586]
[1736180747189,2.5057,3730.5,3730.4,0.26805]
[1736180747394,2.09924203,3730.7,3730.6,0.26803]
[1736180748293,2.36727203,3730.7,3730.6,0.26803]
[1736180748695,3.47582,3730.8,3730.7,0.26803]
[1736180749895,3.14886304,3730.9,3730.3,3.2078]
[1736180750102,3.14886304,3730.9,3730.8,0.26802]
[1736180750801,3.14886304,3730.9,3730.8,5.20272]
[1736180752102,2.10203477,3731.1,3731.0,0.26801]
[1736180752403,0.22631018,3731.3,3731.2,0.26799]
[1736180752608,0.22631018,3731.3,3731.2,3.47579]
[1736180752905,0.22631018,3731.3,3731.2,44.27579]
[1736180753312,4.8126,3732.1,3731.2,44.0078]
[1736180753512,5.08053,3732.1,3732.0,0.26793]
[1736180753714,0.26794,3732.0,3731.9,0.26794]
[1736180754009,0.26795,3731.8,3731.7,0.26795]
[1736180754407,4.20967456,3732.3,3731.6,5.31034087]
[1736180754722,4.47758456,3732.3,3732.2,0.26792]
[1736180754909,0.26792,3732.2,3731.7,2.4995]
[1736180755106,6.56567456,3732.3,3732.1,0.26793]
[1736180755416,3.2078,3732.2,3731.7,2.4995]
[1736180755619,3.2078,3732.2,3731.6,3.2078]
[1736180756027,3.47575,3731.8,3731.6,0.26796]
[1736180756208,4.6697,3731.7,3731.1,3.2078]
[1736180756519,4.6697,3731.7,3731.6,0.26796]
[1736180756922,0.26796,3731.6,3731.1,3.2078]
[1736180757118,2.3339,3731.6,3731.5,0.26797]
[1736180761722,0.26797,3731.5,3731.3,0.26798]
[1736180761923,3.2078,3731.4,3731.3,0.26798]
[1736180762530,0.268,3731.2,3730.7,0.26803]
[1736180762730,3.2078,3731.0,3730.9,0.26801]
[1736180763021,3.2078,3731.0,3730.4,2.77266087]
[1736180763226,7.49862,3730.9,3730.2,0.93823]
[1736180763423,7.2306,3730.9,3730.2,0.67017]
[1736180763725,3.2078,3730.7,3730.1,2.10254087]
[1736180763932,3.2078,3730.3,3729.8,40.8]
[1736180764230,3.2078,3729.9,3729.8,40.8]
[1736180764424,3.2078,3729.9,3729.8,41.06809]
[1736180765023,3.2078,3729.9,3729.8,2.37063087]
[1736180765225,4.7533,3730.2,3730.1,0.26807]
[1736180765424,3.2078,3730.4,3730.1,2.10254087]
[1736180765626,3.2078,3730.4,3730.3,0.26806]
[1736180766226,4.20967456,3730.5,3730.1,2.10254087]
[1736180766427,4.20967456,3730.5,3730.4,0.26805]
[1736180766927,2.5033,3730.6,3730.1,2.10254087]
[1736180767135,2.5033,3730.6,3730.5,0.26804]
[1736180767429,7.9611,3730.9,3730.1,2.10254087]
[1736180767728,7.9611,3730.9,3730.8,0.26802]
[1736180768233,12.17077456,3730.9,3730.8,0.26802]
[1736180768731,12.17077456,3730.9,3730.8,41.06802]
[1736180769434,12.17077456,3730.9,3730.8,0.26802]
[1736180769630,12.17077456,3730.9,3730.0,1.219]
[1736180769631,8.22912,3730.9,3730.7,0.26802]
[1736180769827,0.26802,3730.8,3730.2,40.8]
[1736180770030,3.2078,3730.5,3729.8,2.10254087]
[1736180770235,3.2078,3730.5,3730.4,0.26805]
[1736180772732,3.2078,3730.5,3730.4,2.37059087]
[1736180773332,7.9611,3730.9,3730.8,0.26802]
[1736180775948,0.26803,3730.8,3730.7,0.26803]
[1736180776241,7.9611,3730.9,3730.8,0.26802]
[1736180778546,3.2078,3730.9,3730.8,0.26802]
[1736180782644,7.41747456,3730.9,3730.8,0.26802]
[1736180783245,4.20967456,3730.9,3730.8,0.26802]
[1736180783439,7.41747456,3730.9,3730.8,0.26802]
[1736180783750,3.2078,3730.9,3730.8,0.26802]
[1736180784038,6.68947456,3731.1,3730.3,4.55764087]
[1736180784241,4.20967456,3731.1,3731.0,0.26801]
[1736180784942,4.20967456,3731.1,3731.0,2.67311]
[1736180785345,3.2078,3731.3,3731.2,0.26799]
[1736180791251,4.20588564,3731.6,3731.5,0.26797]
[1736180791439,4.20588564,3731.6,3731.5,2.37051087]
[1736180791643,4.20588564,3731.6,3731.5,43.17051087]
[1736180792551,2.3568,3732.1,3732.0,0.26793]
[1736180793240,2.3568,3732.1,3731.7,0.66989]
[1736180793241,7.41368564,3732.2,3731.8,2.10254087]
[1736180793439,7.41368564,3732.2,3732.1,0.26793]
[1736180795243,3.2078,3732.2,3732.1,0.26793]
[1736180795847,4.20588564,3732.5,3732.4,0.26791]
[1736180796341,4.47378564,3732.5,3731.9,2.3285]
[1736180796547,0.26794,3731.9,3730.9,2.10254087]
[1736180796752,3.2078,3731.7,3731.6,0.26796]
[1736180800148,5.31034087,3731.7,3730.9,40.8]
[1736180800350,3.2078,3731.1,3731.0,0.26801]
[1736180800745,10.4687,3731.1,3730.4,2.10254087]
[1736180800942,10.4687,3731.1,3730.0,4.5624]
[1736180800943,3.2078,3730.6,3730.5,0.26804]
[1736180801143,3.2078,3730.6,3729.9,2.10254087]
[1736180801348,2.68295,3730.5,3730.3,0.26805]
[1736180801549,3.2078,3730.4,3730.3,0.26805]
[1736180801753,3.47585,3730.4,3730.3,0.26805]
[1736180802051,3.2078,3730.4,3730.3,0.26805]
[1736180802752,2.4149,3730.5,3730.4,0.26805]
[1736180804556,0.26805,3730.4,3730.2,0.26806]
[1736180804854,8.33866,3730.3,3730.2,0.26806]
[1736180805154,8.0706,3730.3,3730.2,0.26806]
[1736180806852,8.0706,3730.3,3729.8,40.8]
[1736180807054,5.31034087,3729.9,3728.9,4.39484087]
[1736180807260,0.26809,3729.8,3729.6,0.2681]
[1736180807753,0.26809,3729.8,3729.0,0.67038]
[1736180808160,3.2078,3729.5,3729.1,0.26814]
[1736180808361,2.3054,3729.4,3729.3,0.26813]
[1736180809954,4.432,3729.4,3729.3,0.26813]
[1736180810260,6.804,3729.4,3729.3,0.26813]
[1736180816251,2.3054,3729.4,3729.3,0.26813]
[1736180816465,3.14844969,3729.8,3729.7,0.2681]
[1736180817151,3.14844969,3729.8,3729.7,41.0681]
[1736180817557,9.40875705,3730.3,3730.2,0.26806]
[1736180817558,4.1514,3730.3,3730.2,0.26806]
[1736180818260,4.1514,3730.3,3730.2,41.06806]
[1736180818958,4.1514,3730.3,3730.2,0.26806]
[1736180820362,2.0782,3730.3,3730.2,2.37060087]
[1736180820564,3.14844969,3730.6,3730.2,2.10254087]
[1736180820864,3.14844969,3730.6,3730.5,0.26804]
[1736180821766,3.2078,3730.8,3730.7,0.26803]
[1736180823960,2.1082,3731.0,3730.5,2.10254087]
[1736180823961,2.1082,3731.0,3730.9,0.26801]
[1736180824161,3.2078,3731.2,3731.1,0.268]
[1736180825562,4.0854,3731.3,3730.9,2.0554]
[1736180825763,4.0854,3731.3,3731.2,0.26799]
[1736180826961,2.104,3731.3,3731.2,0.26799]
[1736180828164,2.1442,3731.4,3731.3,0.26798]
[1736180829862,4.24674087,3731.4,3730.5,2.77263087]
[1736180830066,3.2078,3731.0,3730.9,0.26801]
[1736180830266,3.2078,3731.0,3730.4,2.0491]
[1736180830471,4.0547,3730.9,3730.2,40.8]
[1736180830661,3.2078,3730.5,3730.4,0.26805]
[1736180831560,7.2625,3730.9,3730.8,0.26802]
[1736180834169,0.26803,3730.8,3730.7,0.26802]
[1736180834564,7.2625,3730.9,3730.3,0.67015]
[1736180834868,7.53052,3730.9,3730.8,0.26802]
[1736180835264,7.2625,3730.9,3730.1,0.67018]
[1736180835459,3.2078,3730.5,3730.4,0.26805]
[1736180837268,3.2078,3730.5,3730.2,0.26806]
[1736180837570,0.26805,3730.4,3730.3,0.26805]
[1736180837765,3.47585,3730.5,3730.4,0.26805]
[1736180837960,3.2078,3730.5,3730.4,0.26805]
[1736180839961,3.2078,3730.5,3730.0,40.8]
[1736180839962,0.26805,3730.4,3730.0,40.8]
[1736180840164,3.2078,3730.5,3730.0,40.8]
[1736180840362,3.2078,3730.5,3730.4,0.26805]
[1736180840568,3.2078,3730.5,3730.2,2.10254087]
[1736180840770,3.2078,3730.5,3730.4,0.26805]
[1736180840965,3.14844969,3730.6,3730.5,0.26804]
[1736180841770,3.41646969,3730.8,3730.7,0.26803]
[1736180841965,5.49066969,3730.8,3730.7,0.26803]
[1736180843065,5.22264969,3730.8,3730.1,0.67018]
[1736180843370,3.2078,3730.2,3730.0,2.10254087]
[1736180843570,3.2078,3730.6,3730.0,2.10254087]
[1736180843869,7.41368564,3730.6,3730.5,0.26804]
[1736180845067,6.62824177,3730.6,3730.5,0.26804]
[1736180846373,7.68171564,3730.6,3730.5,0.26804]
[1736180847872,7.41368564,3730.6,3730.1,0.67018]
[1736180848075,0.26806,3730.4,3730.3,0.26805]
[1736180848380,3.2078,3730.4,3729.4,2.10254087]
[1736180848578,3.2078,3729.6,3729.5,40.8]
[1736180848767,3.2078,3729.6,3729.5,41.06811]
[1736180849681,0.26809,3729.9,3729.8,0.26809]
[1736180850779,7.41368564,3730.0,3729.5,40.8]
[1736180850973,7.68176564,3730.0,3729.9,0.26809]
[1736180851879,7.41368564,3730.0,3729.9,0.26809]
[1736180852481,6.36131527,3730.0,3729.9,0.26809]
[1736180852780,3.15351527,3730.0,3729.9,41.06809]
[1736180853984,3.15351527,3730.5,3730.4,0.26805]
[1736180856081,3.15351527,3730.5,3730.4,2.37059087]
[1736180857284,3.15351527,3730.5,3730.4,0.26805]
[1736180857588,10.32768661,3730.6,3730.5,0.26804]
[1736180858488,7.17417134,3730.6,3730.5,0.26804]
[1736180861193,5.2225,3730.6,3730.5,0.26804]
[1736180861889,8.37601527,3730.6,3730.5,0.26804]
[1736180863594,5.2225,3730.6,3730.5,0.26804]
[1736180864293,0.26805,3730.5,3730.4,0.26805]
[1736180864488,2.33255,3730.5,3730.4,0.26805]
[1736180865996,6.53843564,3730.5,3730.4,0.26805]
[1736180868394,6.27038564,3730.5,3730.4,0.26805]
[1736180869197,6.53842564,3730.5,3730.4,0.26805]
[1736180869796,6.27038564,3730.5,3729.9,42.90254087]
[1736180870000,3.2078,3730.2,3729.9,40.8]
[1736180870200,1.9893,3730.1,3730.0,0.26808]
[1736180870496,2.25737,3730.1,3730.0,0.26808]
[1736180870695,1.9893,3730.1,3730.0,0.26808]
[1736180871404,4.20588564,3730.2,3730.1,0.26807]
[1736180871700,4.20588564,3730.3,3730.2,0.26806]
[1736180871900,4.20588564,3730.3,3730.2,2.37060087]
[1736180872599,2.0147,3730.6,3730.3,0.26806]
[1736180872600,3.15730036,3730.4,3730.3,0.26806]
[1736180873600,2.0147,3730.6,3730.5,0.26804]
[1736180873601,6.22058564,3730.6,3730.5,0.26804]
[1736180874800,2.0147,3730.6,3730.5,0.26804]
[1736180875299,8.46515705,3730.7,3730.5,2.10254087]
[1736180875602,8.46515705,3730.7,3730.6,0.26803]
[1736180875805,5.25735705,3730.7,3730.6,0.26803]
[1736180876204,5.25735705,3730.7,3730.6,0.71813]
[1736180877205,3.15965408,3730.7,3730.6,0.4501]
[1736180877404,3.15965408,3730.7,3730.6,0.71813]
[1736180878601,3.15965408,3730.7,3730.6,5.71813]
[1736180878807,3.15965408,3730.7,3730.6,0.71813]
[1736180880310,4.3939596,3731.2,3730.9,0.26801]
[1736180880512,1.23289304,3731.2,3731.1,5.57834087]
[1736180880910,4.21154222,3731.2,3731.1,46.37834087]
[1736180881107,2.41264222,3731.2,3731.1,46.37834087]
[1736180881304,6.30882846,3731.9,3731.1,51.11034087]
[1736180881502,6.30882846,3731.9,3731.8,2.37049087]
[1736180881713,6.30882846,3731.9,3731.8,3.58049087]
[1736180881912,6.30882846,3731.9,3731.8,3.66978928]
[1736180882215,2.0559,3732.0,3731.9,0.26794]
[1736180882408,2.0559,3732.0,3731.9,0.35723841]
[1736180882914,2.0559,3732.0,3731.9,41.15723841]
[1736180883319,2.0589,3732.2,3732.1,0.26793]
[1736180883613,2.0589,3732.2,3732.1,2.37047087]
[1736180884018,2.0589,3732.2,3732.1,43.17047087]
[1736180884310,1.9883,3732.5,3732.1,43.17047087]
[1736180884510,1.9883,3732.5,3732.4,0.26791]
[1736180884815,1.9883,3732.5,3732.4,2.37045087]
[1736180885702,2.1132,3732.8,3732.7,0.26788]
[1736180889414,2.1132,3732.8,3732.7,2.37042087]
[1736180890416,2.1132,3732.8,3732.7,43.17042087]
[1736180891411,2.0348,3732.9,3732.8,0.26788]
[1736180897814,2.0348,3732.9,3731.9,0.26794]
[1736180897815,0.26788,3732.7,3731.9,0.26794]
[1736180898020,4.13734087,3732.9,3731.9,0.66986]
[1736180898021,3.2078,3732.4,3731.9,0.66986]
[1736180898220,2.1073,3732.3,3732.0,0.66984]
[1736180898422,2.1073,3732.3,3732.2,0.26792]
[1736180898818,2.1073,3732.3,3732.2,41.06792]
[1736180900219,2.37521,3732.3,3732.2,41.06792]
[1736180901117,6.1599,3732.3,3732.2,41.06792]
[1736180905828,6.1599,3732.3,3732.2,41.06792]
[1736180906621,6.42781,3732.3,3732.2,40.8]
[1736180906828,0.26795,3731.8,3731.7,0.26795]
[1736180907130,3.2078,3731.8,3731.7,0.26796]
[1736180907723,3.2078,3731.8,3731.7,41.06796]
[1736180908332,6.1599,3732.3,3732.1,0.26793]
[1736180908333,3.2078,3732.2,3732.1,0.26793]
[1736180909123,8.43660386,3733.2,3732.0,4.19884087]
[1736180909325,8.43660386,3733.2,3732.4,5.31034087]
[1736180909528,3.47565,3733.2,3733.1,0.26786]
[1736180911920,0.26787,3733.1,3733.0,0.26786]
[1736180912733,0.26788,3732.8,3732.7,41.06787]
[1736180914428,0.26788,3732.8,3732.7,0.26787]
[1736180915131,6.017,3733.1,3732.4,40.8]
[1736180915325,0.26787,3733.0,3732.9,0.26786]
[1736180916528,6.017,3733.1,3732.6,2.1057]
[1736180916730,6.017,3733.1,3733.0,0.26786]
[1736180918036,3.9682,3733.1,3733.0,0.26786]
[1736180918537,2.0101,3733.1,3733.0,0.26786]
[1736180922635,2.27796,3733.1,3733.0,0.26786]
[1736180922938,2.0101,3733.1,3733.0,0.26786]
[1736180924636,4.186968,3733.4,3732.7,2.10254087]
[1736180924834,4.454808,3733.4,3733.3,0.26784]
[1736180925838,4.186968,3733.4,3733.3,0.26784]
[1736180926035,11.80083386,3733.5,3733.4,0.26783]
[1736180927037,6.57203,3733.5,3733.4,0.26783]
[1736180928234,11.80083386,3733.5,3733.4,0.26783]
[1736180930040,11.53300386,3733.5,3733.2,2.0148]
[1736180930242,0.26786,3733.2,3733.1,0.26785]
[1736180930736,11.53300386,3733.5,3732.7,5.98005087]
[1736180930737,11.53300386,3733.5,3732.7,3.2078]
[1736180930942,0.26788,3732.9,3732.8,0.26786]
[1736180931637,0.26787,3733.0,3732.9,0.26786]
[1736180932043,5.49667386,3733.0,3732.9,0.26786]
[1736180932943,4.4759298,3733.0,3732.9,0.26786]
[1736180933742,0.26788,3732.9,3732.8,0.26787]
[1736180933940,0.2679,3732.6,3732.5,0.26789]
[1736180935846,0.2679,3732.5,3732.4,41.0679]
[1736180937843,0.2679,3732.6,3732.5,0.26789]
[1736180938745,4.4759598,3732.6,3732.5,0.26789]
[1736180939145,0.2679,3732.5,3732.4,41.0679]
[1736180940446,4.2080598,3732.6,3732.4,40.8]
[1736180940643,0.2679,3732.5,3732.4,40.8]
[1736180941250,0.2679,3732.5,3732.4,41.06791]
[1736180941552,4.4759498,3732.6,3732.5,0.2679]
[1736180941943,4.4759498,3732.6,3732.5,2.3779]
[1736180942250,0.26789,3732.6,3732.5,2.3779]
[1736180943755,3.47569,3732.7,3732.6,0.26789]
[1736180943951,0.26789,3732.6,3732.5,2.37789]
[1736180944558,4.47671883,3732.6,3732.5,2.37789]
[1736180944955,4.20882883,3732.6,3732.5,2.37789]
[1736180945253,4.20882883,3732.6,3732.5,4.43209]
[1736180946045,1.9858,3732.8,3732.5,4.1642]
[1736180946246,1.9858,3732.8,3732.7,0.26788]
[1736180948355,2.25368,3732.8,3732.7,0.26788]
[1736180948655,1.9858,3732.8,3732.7,0.26788]
[1736180949752,1.9858,3732.8,3732.7,0.26786]
[1736180951457,4.47665883,3733.1,3733.0,0.26784]
[1736180951658,6.14442883,3733.1,3733.0,0.26784]
[1736180951857,4.20882883,3733.1,3733.0,0.26784]
[1736180953255,4.47662883,3733.5,3733.4,0.26781]
[1736180953660,4.20882883,3733.5,3733.4,0.26781]
[1736180954160,5.49660386,3733.6,3733.5,0.2678]
[1736180954855,0.26782,3733.4,3733.3,0.26781]
[1736180958963,0.26782,3733.3,3733.2,0.26781]
[1736180960681,0.26782,3733.2,3733.1,2.26443]
[1736180961057,0.26782,3733.2,3733.1,1.9966]
[1736180961258,0.26781,3733.4,3733.3,0.26781]
[1736180963872,0.26782,3733.3,3733.2,0.26782]
[1736180973178,11.20040386,3733.7,3733.1,1.9966]
[1736180973379,0.26781,3733.5,3733.4,0.2678]
[1736180973778,0.2678,3733.6,3733.5,0.26779]
[1736180977078,1.21495715,3733.6,3733.5,0.26779]
[1736180977584,0.26781,3733.4,3733.3,0.2678]
[1736180978489,1.21496715,3733.4,3733.3,0.2678]
[1736180982189,0.26781,3733.4,3733.3,0.2678]
[1736180982390,1.21496715,3733.4,3733.3,0.2678]
[1736180984503,0.94715715,3733.4,3733.1,2.94375715]
[1736180984698,0.26782,3733.3,3733.2,0.26781]
[1736180987095,5.22880386,3733.6,3733.1,2.94375715]
[1736180987299,5.22880386,3733.6,3733.5,1.21495715]
[1736180987596,5.49659386,3733.6,3733.5,1.21495715]
[1736180987938,5.49659386,3733.6,3733.5,42.01495715]
[1736180988503,0.26779,3733.6,3733.5,42.01495715]
[1736180988801,3.2078,3733.7,3733.5,41.74715715]
[1736180989003,3.47559,3733.7,3733.6,2.18239]
[1736180989301,3.47559,3733.7,3733.6,4.16779]
[1736180989891,3.2078,3733.7,3733.6,4.16779]
[1736180993606,0.66949,3733.6,3732.9,8.50887459]
[1736180993902,0.26782,3733.3,3733.2,0.26781]
[1736180994294,8.43660386,3733.7,3733.0,2.09819403]
[1736180994497,0.26781,3733.5,3733.4,0.2678]
[1736180998108,5.49661386,3733.5,3733.4,0.2678]
[1736180998510,5.22880386,3733.5,3733.4,0.2678]